bitfinex-derivatives/quotes_SOLF0:USTF0_20250320
["timestamp","ask_amount","ask_price","bid_price","bid_amount"]
[1742499390351,0.05838697,127.82,127.79,12.55620264]
[1742499390653,7.8289,127.81,127.79,12.55620264]
[1742499391356,7.88678697,127.82,127.79,20.4452137]
[1742499392850,7.88678697,127.82,127.8,7.8291]
[1742499393349,0.05838697,127.82,127.8,7.8291]
[1742499393550,0.05838697,127.82,127.79,12.6156137]
[1742499394056,0.05838697,127.82,127.8,7.8286]
[1742499394257,0.05838697,127.82,127.79,12.6156137]
[1742499395360,0.05838697,127.82,127.8,12.55620264]
[1742499396161,0.05838697,127.82,127.8,20.38520264]
[1742499396362,0.05838697,127.82,127.8,12.55620264]
[1742499396862,0.05838697,127.82,127.81,12.55620264]
[1742499397564,0.05838697,127.82,127.81,20.38480264]
[1742499410168,0.05838697,127.82,127.81,12.55620264]
[1742499411060,0.05838697,127.82,127.81,20.38480264]
[1742499419976,2.0277,127.86,127.84,7.8264]
[1742499420178,2.0277,127.86,127.84,20.38260264]
[1742499421076,2.08682192,127.86,127.84,20.44210707]
[1742499421780,9.91242192,127.86,127.84,20.44210707]
[1742499421976,2.08682192,127.86,127.85,7.8262]
[1742499422179,0.05912192,127.86,127.85,20.38240264]
[1742499433692,2.1819,127.91,127.88,7.8241]
[1742499433895,2.1819,127.91,127.88,20.38030264]
[1742499434290,10.0047,127.91,127.88,20.38030264]
[1742499434792,7.8232,127.9,127.88,20.43728625]
[1742499435090,12.55620264,127.9,127.88,0.05698361]
[1742499435292,7.8237,127.89,127.88,0.05698361]
[1742499436098,20.37960264,127.9,127.88,0.05698361]
[1742499436285,7.8234,127.9,127.88,0.05698361]
[1742499438295,7.8237,127.89,127.88,0.05698361]
[1742499439091,7.8234,127.9,127.88,0.05698361]
[1742499439697,7.8237,127.89,127.88,0.05698361]
[1742499443598,12.55620264,127.89,127.84,12.55620264]
[1742499443799,16.75620264,127.88,127.84,12.55620264]
[1742499443997,31.9,127.88,127.85,7.8261]
[1742499444699,31.9,127.88,127.85,7.88429835]
[1742499444700,31.95936965,127.88,127.85,7.88429835]
[1742499444899,7.8253,127.87,127.85,7.88429835]
[1742499445799,7.8253,127.87,127.85,0.05819835]
[1742499446400,31.95936965,127.88,127.85,0.05819835]
[1742499446401,7.8255,127.86,127.85,0.05819835]
[1742499446795,31.95936965,127.88,127.85,0.05819835]
[1742499447307,7.8254,127.87,127.85,0.05819835]
[1742499448200,7.8255,127.86,127.85,0.05819835]
[1742499450709,7.8272,127.84,127.82,20.38390264]
[1742499451098,14.55370264,127.87,127.83,7.8274]
[1742499451405,7.8264,127.85,127.83,7.8274]
[1742499451905,7.87855254,127.85,127.83,7.88328675]
[1742499455407,7.8268,127.84,127.83,0.05588675]
[1742499461812,12.55620264,127.84,127.81,258.24]
[1742499462214,12.55620264,127.84,127.8,63.69668277]
[1742499462410,7.8284,127.82,127.8,63.69668277]
[1742499462811,12.55620264,127.84,127.8,63.69668277]
[1742499462812,12.55620264,127.84,127.8,55.86778277]
[1742499463013,7.8286,127.81,127.8,55.92149501]
[1742499463705,7.8286,127.81,127.8,43.36529237]
[1742499465114,7.8286,127.81,127.8,0.05371224]
[1742499470824,20.38480264,127.81,127.8,0.05371224]
[1742499471023,7.8304,127.79,127.76,270.77620264]
[1742499471325,12.55620264,127.8,127.76,278.60750264]
[1742499471824,7.8305,127.78,127.76,278.60750264]
[1742499472025,7.8305,127.78,127.77,0.05557742]
[1742499473324,0.05742843,127.79,127.77,0.05557742]
[1742499474023,0.05742843,127.79,127.77,7.88627742]
[1742499474924,0.05742843,127.79,127.77,0.05557742]
[1742499476228,7.8304,127.78,127.77,0.05557742]
[1742499476428,0.05742843,127.79,127.77,7.88627742]
[1742499476829,0.05742843,127.79,127.77,0.05557742]
[1742499476830,7.88752843,127.79,127.77,0.05557742]
[1742499477029,0.05742843,127.79,127.77,0.05557742]
[1742499478234,7.8304,127.78,127.77,0.05557742]
[1742499479430,35.58752843,127.79,127.77,7.88667742]
[1742499479731,27.75742843,127.79,127.77,0.05557742]
[1742499480030,7.8304,127.78,127.77,0.05557742]
[1742499486335,27.75742843,127.79,127.77,0.05557742]
[1742499486936,27.75742843,127.79,127.77,7.88627742]
[1742499487132,27.75742843,127.79,127.77,0.05557742]
[1742499487532,7.8304,127.78,127.77,0.05557742]
[1742499487835,27.75742843,127.79,127.77,0.05557742]
[1742499488838,35.58752843,127.79,127.77,7.88657742]
[1742499493936,35.58752843,127.79,127.78,7.8304]
[1742499494337,27.75742843,127.79,127.78,7.8304]
[1742499496538,0.05742843,127.79,127.78,20.38660264]
[1742499499535,0.05742843,127.79,127.77,7.88627742]
[1742499500139,12.55620264,127.78,127.77,0.05557742]
[1742499500940,12.61363107,127.79,127.77,0.05557742]
[1742499501242,7.8304,127.78,127.77,0.05557742]
[1742499502346,20.44383107,127.79,127.77,7.88667742]
[1742499502741,12.61363107,127.79,127.77,0.05557742]
[1742499503440,7.8304,127.78,127.77,0.05557742]
[1742499505950,35.5304,127.78,127.77,0.05557742]
[1742499506354,48.08660264,127.78,127.77,0.05557742]
[1742499506650,7.832,127.76,127.74,10.82789503]
[1742499507052,7.832,127.76,127.73,63.70098277]
[1742499507853,7.89221559,127.76,127.73,63.75971467]
[1742499508251,7.8324,127.75,127.73,63.75971467]
[1742499509149,7.8324,127.75,127.73,20.44813454]
[1742499510450,0.06021559,127.76,127.74,20.38900264]
[1742499510647,0.06021559,127.76,127.74,12.55620264]
[1742499511654,0.06021559,127.76,127.75,7.8323]
[1742499511854,0.06021559,127.76,127.75,20.38850264]
[1742499513157,0.06021559,127.76,127.74,12.55620264]
[1742499513343,0.06021559,127.76,127.73,12.61493454]
[1742499513651,0.06021559,127.76,127.74,20.38880264]
[1742499514054,0.06021559,127.76,127.74,12.55620264]
[1742499514255,0.06021559,127.76,127.75,7.8323]
[1742499514753,7.89201559,127.76,127.74,12.55620264]
[1742499515054,7.89201559,127.76,127.74,20.38880264]
[1742499515455,0.06021559,127.76,127.73,0.0587319]
[1742499516958,0.06021559,127.76,127.73,12.61493454]
[1742499517555,7.89221559,127.76,127.73,12.61493454]
[1742499518259,7.89221559,127.76,127.73,20.44803454]
[1742499520060,7.8323,127.75,127.73,20.44803454]
[1742499521362,0.06021559,127.76,127.73,0.0587319]
[1742499522364,35.5328,127.75,127.73,0.0587319]
[1742499522952,35.5328,127.75,127.73,7.8921319]
[1742499525265,27.7,127.75,127.74,7.8329]
[1742499525767,35.5324,127.75,127.73,20.44803454]
[1742499525967,35.5324,127.75,127.73,7.8918319]
[1742499532371,7.8329,127.74,127.73,0.0587319]
[1742499532759,35.5326,127.75,127.73,0.0587319]
[1742499533064,35.5326,127.75,127.73,7.8922319]
[1742499533470,7.8329,127.74,127.73,0.0587319]
[1742499533668,12.55620264,127.74,127.69,55.86778277]
[1742499533868,12.55620264,127.73,127.69,55.86778277]
[1742499534268,7.8348,127.71,127.69,55.86778277]
[1742499534674,0.05161699,127.71,127.69,55.91988509]
[1742499535574,0.05161699,127.71,127.7,7.8353]
[1742499538976,7.88631699,127.71,127.69,20.44390496]
[1742499539976,7.8353,127.7,127.69,0.05210232]
[1742499541080,0.05161699,127.71,127.69,12.60830496]
[1742499541775,0.05161699,127.71,127.7,7.8353]
[1742499542388,0.05161699,127.71,127.7,20.39150264]
[1742499545788,1.699e-05,127.71,127.7,20.39150264]
[1742499546086,27.7,127.76,127.7,12.55620264]
[1742499546288,27.7,127.76,127.73,12.55620264]
[1742499546482,27.7,127.76,127.75,7.832]
[1742499546681,27.7,127.77,127.74,12.55620264]
[1742499547083,27.75736661,127.77,127.75,7.8318]
[1742499547793,35.58846661,127.77,127.75,7.8318]
[1742499548689,40.31356925,127.77,127.74,0.05880596]
[1742499548993,12.55620264,127.76,127.74,0.05880596]
[1742499549478,20.38820264,127.76,127.74,0.05880596]
[1742499550193,7.8323,127.75,127.74,0.05880596]
[1742499550386,20.38850264,127.75,127.74,0.05880596]
[1742499554292,7.8353,127.7,127.69,10.82789503]
[1742499554499,7.8353,127.7,127.67,314.34778277]
[1742499554990,7.836,127.69,127.67,301.79158013]
[1742499555397,7.88698459,127.69,127.67,301.84209054]
[1742499555992,0.05098459,127.69,127.67,309.67889054]
[1742499556798,0.05098459,127.69,127.67,322.23509318]
[1742499557695,0.05098459,127.69,127.67,278.92351305]
[1742499558288,7.88708459,127.69,127.67,278.92351305]
[1742499564001,7.88708459,127.69,127.67,271.08671305]
[1742499564207,7.8366,127.68,127.67,258.53051041]
[1742499564501,7.8366,127.68,127.67,0.05051041]
[1742499564702,20.39280264,127.68,127.67,0.05051041]
[1742499564903,7.8376,127.67,127.65,12.55620264]
[1742499565797,7.8376,127.67,127.65,20.39450264]
[1742499565999,7.8376,127.67,127.65,20.44752851]
[1742499566200,7.8369,127.68,127.65,20.44752851]
[1742499568010,48.14348723,127.69,127.66,7.8378]
[1742499568208,35.58728459,127.69,127.66,7.8378]
[1742499569709,35.58728459,127.69,127.66,20.39400264]
[1742499570308,27.75098459,127.69,127.67,7.8371]
[1742499570505,0.05098459,127.69,127.68,12.55620264]
[1742499571207,4.0372,127.74,127.68,12.55620264]
[1742499571407,27.72,127.73,127.71,12.55620264]
[1742499571605,27.72,127.75,127.72,12.55620264]
[1742499571908,35.5527,127.75,127.72,20.39010264]
[1742499572309,27.72,127.75,127.72,20.39010264]
[1742499572505,7.833,127.74,127.72,20.44064113]
[1742499573113,7.833,127.74,127.72,12.60674113]
[1742499573712,7.833,127.74,127.72,0.05053849]
[1742499575114,7.8335,127.73,127.72,0.05053849]
[1742499579908,7.8331,127.74,127.72,0.05053849]
[1742499580509,0.05933267,127.75,127.73,12.55620264]
[1742499580714,0.05933267,127.75,127.74,12.55620264]
[1742499581817,14.66520264,127.81,127.74,12.55620264]
[1742499582120,27.7,127.8,127.77,12.55620264]
[1742499582330,35.5296,127.8,127.77,20.38670264]
[1742499582717,29.809,127.81,127.78,12.55620264]
[1742499583020,7.8293,127.8,127.77,20.38720264]
[1742499583215,7.8293,127.8,127.78,12.61159457]
[1742499583415,35.57959447,127.81,127.78,12.61159457]
[1742499584122,7.87959447,127.81,127.78,20.44169457]
[1742499584522,0.05089447,127.81,127.79,20.38600264]
[1742499585221,0.05089447,127.81,127.8,12.55620264]
[1742499586727,0.05089447,127.81,127.78,35.58559193]
[1742499586728,0.05089447,127.81,127.78,40.31159457]
[1742499587128,0.05089447,127.81,127.78,12.61159457]
[1742499587630,7.8298,127.79,127.78,0.05539193]
[1742499598743,7.8296,127.8,127.78,0.05539193]
[1742499598936,27.75089447,127.81,127.78,12.61159457]
[1742499599342,7.8298,127.79,127.78,12.61159457]
[1742499599645,27.75089447,127.81,127.78,0.05539193]
[1742499600238,7.8296,127.8,127.78,0.05539193]
[1742499600943,7.8298,127.79,127.78,0.05539193]
[1742499602046,7.8295,127.8,127.78,0.05539193]
[1742499602245,27.75089447,127.81,127.78,0.05539193]
[1742499602644,35.57979447,127.81,127.78,20.44159457]
[1742499603745,35.57979447,127.81,127.79,7.8297]
[1742499603946,0.05089447,127.81,127.8,12.55620264]
[1742499604443,0.05089447,127.81,127.8,20.38540264]
[1742499605947,27.68,127.85,127.83,7.8271]
[1742499606142,27.68,127.85,127.83,20.38330264]
[1742499606342,35.5052,127.87,127.83,20.38330264]
[1742499606539,35.5052,127.87,127.84,7.8267]
[1742499606846,7.8256,127.86,127.83,12.55620264]
[1742499607049,7.8256,127.86,127.84,0.05171675]
[1742499608446,0.04950034,127.87,127.84,0.05171675]
[1742499608641,27.72950034,127.87,127.84,0.05171675]
[1742499609449,0.04950034,127.87,127.84,0.05171675]
[1742499609747,27.72950034,127.87,127.84,0.05171675]
[1742499610143,7.8262,127.85,127.84,0.05171675]
[1742499615149,7.8258,127.86,127.84,7.87831675]
[1742499615350,7.8258,127.86,127.84,12.60791939]
[1742499616350,7.87460034,127.87,127.84,12.60791939]
[1742499616553,7.87460034,127.87,127.85,12.55620264]
[1742499616851,0.04950034,127.87,127.86,12.55620264]
[1742499621254,0.04950034,127.87,127.86,20.38170264]
[1742499621457,0.04950034,127.87,127.86,12.55620264]
[1742499621848,0.04950034,127.87,127.86,20.38170264]
[1742499622556,0.04950034,127.87,127.86,12.55620264]
[1742499622757,7.87440034,127.87,127.86,12.55620264]
[1742499624950,0.04950034,127.87,127.86,12.55620264]
[1742499626353,7.87440034,127.87,127.86,12.55620264]
[1742499626557,0.04950034,127.87,127.85,12.55620264]
[1742499628257,7.8255,127.86,127.85,12.55620264]
[1742499628457,7.8255,127.86,127.84,12.60791939]
[1742499628657,40.26570298,127.87,127.84,0.05171675]
[1742499630363,7.8255,127.86,127.84,0.05171675]
[1742499630658,7.8255,127.86,127.84,20.43471939]
[1742499630856,35.53480034,127.87,127.84,12.60791939]
[1742499631664,27.70950034,127.87,127.85,12.55620264]
[1742499632164,35.53450034,127.87,127.85,12.55620264]
[1742499632865,35.53450034,127.87,127.85,20.38200264]
[1742499633666,27.70950034,127.87,127.85,20.38200264]
[1742499634257,35.53450034,127.87,127.85,20.38200264]
[1742499635462,0.04950034,127.87,127.86,20.38170264]
[1742499638668,7.8234,127.9,127.88,7.824]
[1742499638868,7.8234,127.9,127.88,20.38020264]
[1742499639769,7.8237,127.89,127.88,12.55620264]
[1742499639969,7.8237,127.89,127.88,0.05531337]
[1742499644163,20.37990264,127.89,127.88,0.05531337]
[1742499648978,7.8237,127.89,127.88,0.05531337]
[1742499663082,35.54333984,127.9,127.88,0.05531337]
[1742499663286,27.71993984,127.9,127.88,0.05531337]
[1742499664186,7.8237,127.89,127.88,0.05531337]
[1742499668599,0.05993984,127.9,127.89,7.8237]
[1742499668783,0.05993984,127.9,127.89,20.37990264]
[1742499671891,7.88303984,127.9,127.89,12.55620264]
[1742499672791,7.88303984,127.9,127.88,12.61151601]
[1742499673788,7.88303984,127.9,127.88,20.43581601]
[1742499674893,7.8237,127.89,127.88,12.61151601]
[1742499675093,7.8237,127.89,127.88,0.05531337]
[1742499675890,7.8237,127.89,127.88,12.61151601]
[1742499681291,7.8237,127.89,127.88,0.05531337]
[1742499692793,7.88333984,127.9,127.88,0.05531337]
[1742499692993,0.05993984,127.9,127.89,12.55620264]
[1742499693305,0.05993984,127.9,127.88,12.61151601]
[1742499693492,0.05993984,127.9,127.89,7.8237]
[1742499693694,0.05993984,127.9,127.89,20.37990264]
[1742499694304,0.05993984,127.9,127.89,12.55620264]
[1742499694702,7.88303984,127.9,127.89,12.55620264]
[1742499700208,7.88303984,127.9,127.88,20.43551601]
[1742499700404,7.8237,127.89,127.88,0.05531337]
[1742499701909,7.88333984,127.9,127.88,12.61151601]
[1742499702510,7.88333984,127.9,127.88,20.43581601]
[1742499703611,7.8237,127.89,127.88,12.61151601]
[1742499704911,0.05993984,127.9,127.88,12.61151601]
[1742499705214,0.05993984,127.9,127.89,12.55620264]
[1742499705405,0.05993984,127.9,127.89,20.37990264]
[1742499712522,27.64,127.95,127.92,7.8213]
[1742499712722,27.64,127.95,127.92,12.55620264]
[1742499712723,7.8203,127.95,127.92,12.55620264]
[1742499712919,18.98450264,127.98,127.93,12.55620264]
[1742499713118,18.98450264,127.98,127.9,27.64]
[1742499713119,7.8192,127.97,127.94,20.37680264]
[1742499713324,35.4592,127.97,127.94,20.37680264]
[1742499713629,35.50998317,127.97,127.94,20.4338391]
[1742499714229,35.50998317,127.97,127.94,12.6132391]
[1742499714230,7.8195,127.96,127.94,12.6132391]
[1742499714830,35.50988317,127.97,127.94,20.4338391]
[1742499715033,35.50988317,127.97,127.94,12.6132391]
[1742499715229,7.86988317,127.97,127.95,12.55620264]
[1742499715828,0.05078317,127.97,127.94,12.6132391]
[1742499716043,0.05078317,127.97,127.94,0.05703646]
[1742499716542,27.79078317,127.97,127.94,0.05703646]
[1742499716931,7.82,127.95,127.94,0.05703646]
[1742499717539,7.8198,127.96,127.94,12.6132391]
[1742499717934,7.82,127.95,127.94,12.6132391]
[1742499718331,27.79078317,127.97,127.94,12.6132391]
[1742499718737,0.05078317,127.97,127.96,12.55620264]
[1742499720130,7.86958317,127.97,127.96,12.55620264]
[1742499720736,7.8194,127.96,127.95,12.55620264]
[1742499721139,0.05078317,127.97,127.95,12.55620264]
[1742499721443,7.86998317,127.97,127.95,12.55620264]
[1742499722047,7.86998317,127.97,127.96,12.55620264]
[1742499722648,0.05078317,127.97,127.96,12.55620264]
[1742499723045,12.55620264,128.04,127.96,40.85620264]
[1742499723243,12.55620264,128.05,128.01,12.55620264]
[1742499723444,28.38,128.04,128.01,12.55620264]
[1742499723641,28.38,128.04,128.0,12.55620264]
[1742499723842,40.93620264,128.04,127.99,12.55620264]
[1742499724141,12.61205317,128.03,128.0,0.05705128]
[1742499724448,7.8167,128.01,128.0,0.05705128]
[1742499724649,4.09725053,128.03,128.0,12.61325392]
[1742499725051,11.91265053,128.03,128.0,12.61325392]
[1742499725349,4.09725053,128.03,128.0,12.61325392]
[1742499725741,4.09725053,128.03,128.0,0.05705128]
[1742499726047,7.8164,128.01,128.0,0.05705128]
[1742499726936,7.816,128.02,128.0,12.61325392]
[1742499727143,4.09725053,128.03,128.01,12.55620264]
[1742499727445,7.8158,128.02,128.0,12.61325392]
[1742499727643,4.09725053,128.03,128.0,12.61325392]
[1742499728047,7.8158,128.02,128.0,12.61325392]
[1742499728238,32.77725053,128.03,128.0,12.61325392]
[1742499729050,7.8164,128.01,128.0,0.05705128]
[1742499729951,20.37260264,128.01,128.0,0.05705128]
[1742499730152,7.8182,127.98,127.96,12.55620264]
[1742499730352,7.8182,127.98,127.97,12.55620264]
[1742499730753,7.8188,127.97,127.96,12.55620264]
[1742499731053,41.25620264,128.0,127.95,12.55620264]
[1742499731350,7.8192,127.97,127.95,12.61348667]
[1742499731550,0.05399493,127.98,127.95,12.61348667]
[1742499732052,7.8194,127.97,127.95,12.61348667]
[1742499732248,7.8194,127.97,127.96,12.55620264]
[1742499732553,7.87249493,127.98,127.96,12.55620264]
[1742499732750,0.05399493,127.98,127.96,12.55620264]
[1742499733350,7.8188,127.97,127.96,12.55620264]
[1742499734152,7.87249493,127.98,127.96,12.55620264]
[1742499734445,7.87249493,127.98,127.96,20.37550264]
[1742499735051,7.87249493,127.98,127.96,12.55620264]
[1742499735753,7.8188,127.97,127.96,12.55620264]
[1742499736252,0.05399493,127.98,127.96,12.55620264]
[1742499737254,7.87249493,127.98,127.96,12.55620264]
[1742499737750,7.87249493,127.98,127.96,20.37530264]
[1742499738649,0.05399493,127.98,127.96,20.37530264]
[1742499738852,0.05399493,127.98,127.97,7.8188]
[1742499739154,0.05399493,127.98,127.96,12.55620264]
[1742499739556,0.05399493,127.98,127.96,20.37520264]
[1742499740057,0.05399493,127.98,127.96,12.55620264]
[1742499740357,7.87219493,127.98,127.96,12.55620264]
[1742499740953,7.87219493,127.98,127.96,20.37530264]
[1742499741757,0.05399493,127.98,127.97,20.37500264]
[1742499745249,0.05399493,127.98,127.97,12.55620264]
[1742499746561,7.87219493,127.98,127.97,12.55620264]
[1742499748861,0.05399493,127.98,127.97,20.37500264]
[1742499750459,0.05399493,127.98,127.97,48.95500264]
[1742499765772,28.54,128.02,127.97,41.13620264]
[1742499766075,28.54,128.02,128.0,12.55620264]
[1742499766375,36.3561,128.02,128.0,12.55620264]
[1742499766776,7.8164,128.01,128.0,12.55620264]
[1742499766977,7.8164,128.01,128.0,12.61237442]
[1742499767177,28.59235164,128.02,128.0,20.42927442]
[1742499767368,36.40845164,128.02,128.0,20.42927442]
[1742499767764,28.59235164,128.02,128.0,12.61237442]
[1742499768273,7.8164,128.01,128.0,12.61237442]
[1742499768673,7.8164,128.01,128.0,0.05617178]
[1742499769072,28.59235164,128.02,127.94,301.35158013]
[1742499769277,12.55620264,127.98,127.94,43.31158013]
[1742499769476,12.55620264,127.97,127.94,43.31158013]
[1742499769673,7.82,127.95,127.94,32.4836851]
[1742499769881,48.79620264,127.95,127.94,32.4836851]
[1742499770074,40.97620264,127.95,127.93,215.88889667]
[1742499770271,20.37680264,127.94,127.93,215.94172546]
[1742499770478,7.8206,127.94,127.93,215.94172546]
[1742499771980,7.8206,127.94,127.93,0.05282879]
[1742499772981,7.8227,127.91,127.89,270.47620264]
[1742499774086,7.87354397,127.91,127.89,270.53112131]
[1742499775979,7.8231,127.9,127.89,270.53112131]
[1742499776182,0.05084397,127.91,127.89,270.53112131]
[1742499776986,7.87364397,127.91,127.89,270.53112131]
[1742499780488,7.8231,127.9,127.89,257.97491867]
[1742499780683,7.8231,127.9,127.89,0.05491867]
[1742499781891,7.87364397,127.91,127.89,0.05491867]
[1742499782683,0.05084397,127.91,127.89,12.61112131]
[1742499782890,0.05084397,127.91,127.9,12.55620264]
[1742499783387,0.05084397,127.91,127.9,20.37930264]
[1742499783780,0.05084397,127.91,127.9,7.8231]
[1742499794303,0.05084397,127.91,127.9,20.37930264]
[1742499796206,0.05084397,127.91,127.9,7.8231]
[1742499801414,7.87354397,127.91,127.89,20.43442131]
[1742499804314,7.8231,127.9,127.89,12.61112131]
[1742499804515,7.8231,127.9,127.89,0.05491867]
[1742499804912,20.37930264,127.9,127.89,0.05491867]
[1742499805117,7.8247,127.88,127.85,12.55620264]
[1742499805317,35.9647,127.88,127.85,12.55620264]
[1742499805820,7.8249,127.87,127.85,20.38200264]
[1742499806117,0.05803944,127.87,127.85,20.38200264]
[1742499806422,0.05803944,127.87,127.85,20.43570668]
[1742499806827,0.05803944,127.87,127.86,7.8255]
[1742499807020,0.05803944,127.87,127.86,20.38170264]
[1742499823735,0.05803944,127.87,127.86,7.8255]
[1742499823942,0.05803944,127.87,127.85,0.05370404]
[1742499825446,7.8255,127.86,127.85,0.05370404]
[1742499828244,0.05803944,127.87,127.86,7.8255]
[1742499828441,0.05803944,127.87,127.86,20.38170264]
[1742499844651,27.96,127.91,127.89,7.8234]
[1742499844846,28.0,127.92,127.89,20.37960264]
[1742499845154,7.8227,127.91,127.89,20.37960264]
[1742499845561,7.8231,127.9,127.89,12.55620264]
[1742499845750,7.8231,127.9,127.89,0.05970914]
[1742499848261,35.85609405,127.91,127.89,7.88340914]
[1742499849459,35.85609405,127.91,127.89,0.05970914]
[1742499849862,7.8231,127.9,127.89,0.05970914]
[1742499864374,35.83609405,127.91,127.89,7.88340914]
[1742499865374,28.01329405,127.91,127.9,7.8231]
[1742499865574,0.05329405,127.91,127.9,20.37930264]
[1742499885392,0.05329405,127.91,127.89,12.61591178]
[1742499885892,7.87609405,127.91,127.89,12.61591178]
[1742499886485,7.87609405,127.91,127.89,20.43931178]
[1742499886684,7.87609405,127.91,127.9,12.55620264]
[1742499887189,7.87609405,127.91,127.89,7.88310914]
[1742499887391,7.87609405,127.91,127.9,12.55620264]
[1742499887591,0.05329405,127.91,127.9,12.55620264]
[1742499887891,0.05329405,127.91,127.9,20.37930264]
[1742499888784,7.87579405,127.91,127.9,12.55620264]
[1742499888985,0.05329405,127.91,127.9,12.55620264]
[1742499890491,0.05329405,127.91,127.9,20.37930264]
[1742499894889,28.02,127.94,127.92,7.8213]
[1742499895098,28.02,127.94,127.93,12.55620264]
[1742499895289,28.04,127.96,127.93,12.55620264]
[1742499895489,28.04,127.96,127.93,20.37750264]
[1742499895692,28.04,127.96,127.93,12.55620264]
[1742499896195,7.8205,127.95,127.93,12.61171058]
[1742499896390,7.8205,127.95,127.93,0.05550794]
[1742499896595,28.08940903,127.96,127.93,0.05550794]
[1742499896793,7.8206,127.94,127.93,0.05550794]
[1742499897193,28.02,127.95,127.93,0.05550794]
[1742499897489,0.04940903,127.96,127.93,0.05550794]
[1742499897695,28.06940903,127.96,127.93,0.05550794]
[1742499898098,7.8206,127.94,127.93,0.05550794]
[1742499901806,35.8203,127.95,127.93,0.05550794]
[1742499902100,28.0,127.95,127.93,12.61171058]
[1742499902300,0.04940903,127.96,127.94,12.55620264]
[1742499902504,0.04940903,127.96,127.95,12.55620264]
[1742499903002,0.04940903,127.96,127.95,20.37620264]
[1742499904501,0.04940903,127.96,127.95,12.55620264]
[1742499905594,0.04940903,127.96,127.95,20.37620264]
[1742499911405,27.94,128.01,127.98,7.8178]
[1742499911600,27.94,128.01,127.99,12.55620264]
[1742499912197,7.817,128.0,127.99,12.55620264]
[1742499913007,27.99689572,128.01,127.99,12.55620264]
[1742499913509,7.817,128.0,127.99,12.55620264]
[1742499913711,28.01689572,128.01,127.99,20.37380264]
[1742499914206,28.01689572,128.01,127.99,12.55620264]
[1742499914405,28.01689572,128.01,127.98,20.42650175]
[1742499915015,7.8174,128.0,127.98,20.42650175]
[1742499915813,35.83359572,128.01,127.98,20.42650175]
[1742499916011,28.01689572,128.01,127.99,20.37370264]
[1742499917717,35.83339572,128.01,127.99,12.55620264]
[1742499918512,35.83339572,128.01,127.99,20.37370264]
[1742499918814,35.89339572,128.01,127.99,20.37370264]
[1742499919613,35.89339572,128.01,127.99,7.8175]
[1742499919813,7.8171,128.0,127.98,0.05249911]
[1742499920017,12.55620264,128.0,127.98,0.05249911]
[1742499920616,7.8176,127.99,127.98,0.05249911]
[1742499927717,12.55620264,127.99,127.95,12.55620264]
[1742499927911,40.51620264,127.98,127.93,12.55620264]
[1742499928315,7.8201,127.95,127.93,20.37710264]
[1742499929023,7.87341923,127.95,127.93,20.43599518]
[1742499930020,0.05331923,127.95,127.93,20.43599518]
[1742499930423,28.09331923,127.95,127.93,0.05889254]
[1742499930622,35.91391923,127.95,127.93,0.05889254]
[1742499931123,35.91391923,127.95,127.93,12.61509518]
[1742499931725,7.8206,127.94,127.93,12.61509518]
[1742499932526,7.8206,127.94,127.93,0.05889254]
[1742499936123,20.37680264,127.94,127.93,0.05889254]
[1742499938022,7.8231,127.9,127.89,12.55620264]
[1742499938226,7.8231,127.9,127.86,28.0]
[1742499938227,7.8231,127.9,127.88,12.55620264]
[1742499939017,7.8231,127.9,127.88,20.38020264]
[1742499939218,0.05137015,127.9,127.88,20.43788331]
[1742499939422,0.05137015,127.9,127.88,12.61388331]
[1742499940025,0.05137015,127.9,127.89,12.55620264]
[1742499940626,0.05137015,127.9,127.89,20.37990264]
[1742499942028,0.05137015,127.9,127.89,12.55620264]
[1742499942529,7.87447015,127.9,127.89,12.55620264]
[1742499944531,0.05137015,127.9,127.89,12.55620264]
[1742499945333,0.05137015,127.9,127.89,20.37990264]
[1742499946028,7.87447015,127.9,127.89,12.55620264]
[1742499946732,0.05137015,127.9,127.89,20.37990264]
[1742499953136,0.05137015,127.9,127.88,20.43788331]
[1742499953835,7.87447015,127.9,127.88,20.43788331]
[1742499955437,0.05137015,127.9,127.88,20.43788331]
[1742499955732,0.05137015,127.9,127.88,12.61388331]
[1742499955939,0.05137015,127.9,127.88,0.05768067]
[1742499955940,27.97137015,127.9,127.88,0.05768067]
[1742499957240,27.97137015,127.9,127.88,7.88198067]
[1742499958042,27.97137015,127.9,127.88,0.05768067]
[1742499958642,7.8237,127.89,127.88,0.05768067]
[1742499958943,7.8237,127.89,127.88,7.88198067]
[1742499959340,27.97137015,127.9,127.88,7.88198067]
[1742499960539,7.8237,127.89,127.88,0.05768067]
[1742499961343,35.7237,127.89,127.88,0.05768067]
[1742499961942,27.9,127.89,127.88,7.88198067]
[1742499963643,27.9,127.89,127.88,20.43818331]
[1742499964444,0.05137015,127.9,127.89,7.8237]